[Event "Junior-SM 2025"]
[Site "Uppsala, Sweden"]
[Date "2025.07.01"]
[Round "4.3"]
[White "Nilsson, Oliver"]
[Black "Seo, Jung Hyun"]
[Result "1-0"]
[TimeControl "90 min for 40 move + 30 min with an increment of 30 sec starting move 1"]
[WhiteFideId "1730177"]
[BlackFideId "1735667"]
[WhiteElo "2129"]
[BlackElo "2153"]

1. e4 {[%clk 01:18:20]} {[%emt 00:12:32]} e5 {[%clk 01:30:55]} {[%emt
00:00:12]} 2. Nf3 {[%clk 01:18:12]} {[%emt 00:00:38]} Nc6 {[%clk 01:31:22]}
{[%emt 00:00:03]} 3. Bc4 {[%clk 01:18:15]} {[%emt 00:00:27]} Nf6 {[%clk
01:31:48]} {[%emt 00:00:04]} 4. Ng5 {[%clk 01:17:40]} {[%emt 00:01:05]} d5
{[%clk 01:32:13]} {[%emt 00:00:04]} 5. exd5 {[%clk 01:18:07]} {[%emt 00:00:04]}
Na5 {[%clk 01:32:40]} {[%emt 00:00:03]} 6. Bb5+ {[%clk 01:18:33]} {[%emt
00:00:04]} c6 {[%clk 01:33:07]} {[%emt 00:00:03]} 7. dxc6 {[%clk 01:18:59]}
{[%emt 00:00:05]} bxc6 {[%clk 01:33:34]} {[%emt 00:00:02]} 8. Qf3 {[%clk
01:19:23]} {[%emt 00:00:05]} Be7 {[%clk 01:33:55]} {[%emt 00:00:09]} 9. Bd3
{[%clk 01:19:41]} {[%emt 00:00:12]} h6 {[%clk 01:26:37]} {[%emt 00:07:49]} 10.
Ne4 {[%clk 01:19:21]} {[%emt 00:00:50]} Nd5 {[%clk 01:27:00]} {[%emt 00:00:07]}
11. Ng3 {[%clk 01:18:29]} {[%emt 00:01:22]} O-O {[%clk 01:21:25]} {[%emt
00:06:05]} 12. Bf5 {[%clk 01:10:04]} {[%emt 00:08:55]} Bb7 {[%clk 01:09:41]}
{[%emt 00:12:14]} 13. d3 {[%clk 01:02:22]} {[%emt 00:08:11]} Rb8 {[%clk
00:58:55]} {[%emt 00:11:16]} 14. O-O {[%clk 00:49:05]} {[%emt 00:13:47]} c5
{[%clk 00:36:08]} {[%emt 00:23:18]} 15. Be4 {[%clk 00:46:31]} {[%emt 00:03:04]}
Kh8 {[%clk 00:18:35]} {[%emt 00:18:03]} 16. Nf5 {[%clk 00:37:21]} {[%emt
00:09:41]} Nf4 {[%clk 00:08:44]} {[%emt 00:10:20]} 17. Bxf4 {[%clk 00:26:47]}
{[%emt 00:11:05]} exf4 {[%clk 00:09:03]} {[%emt 00:00:10]} 18. Nxe7 {[%clk
00:19:45]} {[%emt 00:07:33]} Qxe7 {[%clk 00:09:29]} {[%emt 00:00:04]} 19. Bxb7
{[%clk 00:19:16]} {[%emt 00:00:59]} Rxb7 {[%clk 00:09:38]} {[%emt 00:00:20]} 20.
b3 {[%clk 00:19:00]} {[%emt 00:00:46]} Qe5 {[%clk 00:08:43]} {[%emt 00:01:26]}
21. Nd2 {[%clk 00:19:15]} {[%emt 00:00:15]} Re7 {[%clk 00:08:49]} {[%emt
00:00:23]} 22. Qe4 {[%clk 00:10:43]} {[%emt 00:09:02]} Qc7 {[%clk 00:07:22]}
{[%emt 00:01:57]} 23. Qf5 {[%clk 00:09:42]} {[%emt 00:01:31]} Re2 {[%clk
00:05:22]} {[%emt 00:02:30]} 24. Rad1 {[%clk 00:09:53]} {[%emt 00:00:19]} Rfe8
{[%clk 00:05:28]} {[%emt 00:00:24]} 25. c4 {[%clk 00:08:09]} {[%emt 00:02:15]}
Nb7 {[%clk 00:05:17]} {[%emt 00:00:41]} 26. Ne4 {[%clk 00:06:56]} {[%emt
00:01:43]} Rxa2 {[%clk 00:04:49]} {[%emt 00:00:58]} 27. Nc3 {[%clk 00:07:14]}
{[%emt 00:00:12]} Rb2 {[%clk 00:04:14]} {[%emt 00:01:04]} 28. Rfe1 {[%clk
00:06:38]} {[%emt 00:01:06]} Rxe1+ {[%clk 00:03:55]} {[%emt 00:00:49]} 29. Rxe1
{[%clk 00:07:07]} {[%emt 00:00:01]} Nd6 {[%clk 00:03:40]} {[%emt 00:00:45]} 30.
Qxf4 {[%clk 00:06:47]} {[%emt 00:00:50]} Rxb3 {[%clk 00:03:30]} {[%emt
00:00:40]} 31. Nd5 {[%clk 00:07:11]} {[%emt 00:00:06]} Qb8 {[%clk 00:03:16]}
{[%emt 00:00:42]} 32. h3 {[%clk 00:06:46]} {[%emt 00:00:57]} Rb1 {[%clk
00:03:28]} {[%emt 00:00:18]} 33. Rxb1 {[%clk 00:06:33]} {[%emt 00:00:44]} Qxb1+
{[%clk 00:03:58]} 34. Kh2 {[%clk 00:07:01]} {[%emt 00:00:01]} Ne8 {[%clk
00:01:29]} {[%emt 00:02:59]} 35. Qxf7 {[%clk 00:05:25]} {[%emt 00:02:06]} Qb8+
{[%clk 00:01:33]} {[%emt 00:00:26]} 36. g3 {[%clk 00:04:55]} {[%emt 00:01:00]}
Qe5 {[%clk 00:00:59]} {[%emt 00:01:04]} 37. Ne7 {[%clk 00:04:51]} {[%emt
00:00:34]} Nf6 {[%emt 00:00:18]} 1-0

[Event "Junior-SM 2025"]
[Site "Uppsala, Sweden"]
[Date "2025.07.01"]
[Round "4.4"]
[White "Wernber, Hugo"]
[Black "Religa, Marek"]
[Result "1/2-1/2"]
[TimeControl "90 min for 40 move + 30 min with an increment of 30 sec starting move 1"]
[WhiteTitle "FM"]
[WhiteFideId "1737511"]
[BlackFideId "1750208"]
[WhiteElo "2247"]
[BlackElo "2228"]

1. e4 {[%clk 01:29:00]} {[%emt 00:01:59]} g6 {[%clk 01:30:51]} {[%emt
00:00:09]} 2. d4 {[%clk 01:27:10]} {[%emt 00:02:19]} Bg7 {[%clk 01:31:16]}
{[%emt 00:00:06]} 3. Nf3 {[%clk 01:25:40]} {[%emt 00:02:00]} d6 {[%clk
01:31:45]} {[%emt 00:00:01]} 4. Be3 {[%clk 01:24:17]} {[%emt 00:01:53]} Nf6
{[%clk 01:31:44]} {[%emt 00:00:31]} 5. Nc3 {[%clk 01:24:08]} {[%emt 00:00:37]}
O-O {[%clk 01:32:05]} {[%emt 00:00:10]} 6. h3 {[%clk 01:22:55]} {[%emt
00:01:42]} a6 {[%clk 01:05:12]} {[%emt 00:27:25]} 7. a4 {[%clk 01:19:41]}
{[%emt 00:03:44]} Nc6 {[%clk 01:03:21]} {[%emt 00:02:21]} 8. d5 {[%clk
01:04:40]} {[%emt 00:15:30]} Na7 {[%clk 01:00:36]} {[%emt 00:03:16]} 9. Qd2
{[%clk 00:57:32]} {[%emt 00:07:37]} c5 {[%clk 00:54:53]} {[%emt 00:06:14]} 10.
dxc6 {[%clk 00:38:39]} {[%emt 00:19:23]} Nxc6 {[%clk 00:55:22]} {[%emt
00:00:01]} 11. Be2 {[%clk 00:38:52]} {[%emt 00:00:16]} Qa5 {[%clk 00:54:16]}
{[%emt 00:01:36]} 12. O-O {[%clk 00:38:20]} {[%emt 00:01:02]} Bd7 {[%clk
00:53:11]} {[%emt 00:01:35]} 13. Nd4 {[%clk 00:37:22]} {[%emt 00:01:27]} Nxd4
{[%clk 00:49:06]} {[%emt 00:04:36]} 14. Qxd4 {[%clk 00:35:40]} {[%emt
00:02:11]} Bc6 {[%clk 00:47:46]} {[%emt 00:01:50]} 15. Qd2 {[%clk 00:34:50]}
{[%emt 00:01:19]} Qc7 {[%clk 00:40:36]} {[%emt 00:07:42]} 16. Nd5 {[%clk
00:26:09]} {[%emt 00:09:10]} Qd8 {[%clk 00:38:48]} {[%emt 00:02:19]} 17. f3
{[%clk 00:23:07]} {[%emt 00:03:32]} Nd7 {[%clk 00:31:00]} {[%emt 00:08:18]} 18.
Rfb1 {[%clk 00:19:24]} {[%emt 00:04:12]} a5 {[%clk 00:27:43]} {[%emt 00:03:48]}
19. Nc3 {[%clk 00:18:44]} {[%emt 00:01:10]} Rc8 {[%clk 00:26:22]} {[%emt
00:01:52]} 20. Nb5 {[%clk 00:16:36]} {[%emt 00:02:37]} Ne5 {[%clk 00:22:48]}
{[%emt 00:04:04]} 21. Na7 {[%clk 00:14:51]} {[%emt 00:02:14]} Ra8 {[%clk
00:23:17]} {[%emt 00:00:01]} 22. Ra3 {[%clk 00:12:45]} {[%emt 00:02:37]} f5
{[%clk 00:17:31]} {[%emt 00:06:16]} 23. f4 {[%clk 00:11:55]} {[%emt 00:01:19]}
Nd7 {[%clk 00:16:47]} {[%emt 00:01:15]} 1/2-1/2

[Event "Junior-SM 2025"]
[Site "Uppsala, Sweden"]
[Date "2025.07.01"]
[Round "4.5"]
[White "Grahn, Vidar"]
[Black "Karlsson, Stefan"]
[Result "1/2-1/2"]
[TimeControl "90 min for 40 move + 30 min with an increment of 30 sec starting move 1"]
[WhiteTitle "FM"]
[WhiteFideId "1744780"]
[BlackFideId "1771183"]
[WhiteElo "2239"]
[BlackElo "2126"]

1. e4 {[%clk 01:30:56]} {[%emt 00:00:03]} c5 {[%clk 01:30:34]} {[%emt
00:00:26]} 2. Nf3 {[%clk 01:30:55]} {[%emt 00:00:32]} d6 {[%clk 01:31:00]}
{[%emt 00:00:04]} 3. d4 {[%clk 01:31:13]} {[%emt 00:00:12]} cxd4 {[%clk
01:31:24]} {[%emt 00:00:06]} 4. Nxd4 {[%clk 01:31:40]} {[%emt 00:00:02]} Nf6
{[%clk 01:31:47]} {[%emt 00:00:08]} 5. Nc3 {[%clk 01:32:04]} {[%emt 00:00:05]}
Nc6 {[%clk 01:32:13]} {[%emt 00:00:04]} 6. Bg5 {[%clk 01:32:27]} {[%emt
00:00:08]} e6 {[%clk 01:32:11]} {[%emt 00:00:31]} 7. Qd2 {[%clk 01:32:03]}
{[%emt 00:00:54]} a6 {[%clk 01:30:59]} {[%emt 00:01:43]} 8. O-O-O {[%clk
01:31:11]} {[%emt 00:01:22]} Bd7 {[%clk 01:31:18]} {[%emt 00:00:12]} 9. f3
{[%clk 01:30:17]} {[%emt 00:01:24]} Nxd4 {[%clk 01:31:31]} {[%emt 00:00:16]} 10.
Qxd4 {[%clk 01:30:42]} {[%emt 00:00:05]} Be7 {[%clk 01:31:54]} {[%emt
00:00:07]} 11. Kb1 {[%clk 01:30:15]} {[%emt 00:00:57]} Qc7 {[%clk 01:32:13]}
{[%emt 00:00:11]} 12. h4 {[%clk 01:30:14]} {[%emt 00:00:31]} b5 {[%clk
01:32:32]} {[%emt 00:00:10]} 13. Qd2 {[%clk 01:30:01]} {[%emt 00:00:44]} b4
{[%clk 01:32:39]} {[%emt 00:00:23]} 14. Ne2 {[%clk 01:30:26]} {[%emt 00:00:05]}
a5 {[%clk 01:32:51]} {[%emt 00:00:18]} 15. c4 {[%clk 01:29:44]} {[%emt
00:01:12]} e5 {[%clk 01:26:02]} {[%emt 00:07:18]} 16. Ng3 {[%clk 01:27:57]}
{[%emt 00:02:18]} h6 {[%clk 01:18:26]} {[%emt 00:08:06]} 17. Bxf6 {[%clk
01:28:16]} {[%emt 00:00:11]} Bxf6 {[%clk 01:18:31]} {[%emt 00:00:25]} 18. Nh5
{[%clk 01:27:32]} {[%emt 00:01:14]} Ke7 {[%clk 01:15:02]} {[%emt 00:04:00]} 19.
g4 {[%clk 01:27:46]} {[%emt 00:00:15]} g5 {[%clk 01:13:38]} {[%emt 00:01:54]}
20. Nxf6 {[%clk 01:27:58]} {[%emt 00:00:19]} Kxf6 {[%clk 01:14:01]} {[%emt
00:00:07]} 21. hxg5+ {[%clk 01:21:36]} {[%emt 00:06:51]} hxg5 {[%clk 01:13:33]}
{[%emt 00:00:57]} 22. Rxh8 {[%clk 01:21:34]} {[%emt 00:00:33]} Rxh8 {[%clk
01:13:54]} {[%emt 00:00:09]} 23. Qxd6+ {[%clk 01:21:18]} {[%emt 00:00:47]} Qxd6
{[%clk 01:14:11]} {[%emt 00:00:12]} 24. Rxd6+ {[%clk 01:21:44]} {[%emt
00:00:04]} Ke7 {[%clk 01:12:37]} {[%emt 00:02:03]} 25. Rd1 {[%clk 01:16:30]}
{[%emt 00:05:45]} Rh2 {[%clk 01:07:54]} {[%emt 00:05:12]} 26. c5 {[%clk
01:10:46]} {[%emt 00:06:15]} Rf2 {[%clk 01:03:35]} {[%emt 00:04:48]} 27. Ba6
{[%clk 01:08:14]} {[%emt 00:03:03]} Rxf3 {[%clk 00:54:36]} {[%emt 00:09:29]} 28.
Bb7 {[%clk 01:07:11]} {[%emt 00:01:32]} Rf6 {[%clk 00:42:55]} {[%emt 00:12:11]}
29. Rd5 {[%clk 01:00:21]} {[%emt 00:07:21]} Be6 {[%clk 00:40:47]} {[%emt
00:02:37]} 30. Rd1 {[%clk 00:51:13]} {[%emt 00:09:38]} Bxg4 {[%clk 00:39:02]}
{[%emt 00:02:15]} 31. Rg1 {[%clk 00:50:11]} {[%emt 00:01:32]} Rf4 {[%clk
00:36:02]} {[%emt 00:03:30]} 32. Kc2 {[%clk 00:45:09]} {[%emt 00:05:33]} Bf3
{[%clk 00:29:41]} {[%emt 00:06:51]} 33. Kd3 {[%clk 00:37:38]} {[%emt 00:08:02]}
Rg4 {[%clk 00:24:45]} {[%emt 00:05:24]} 34. Rxg4 {[%clk 00:22:28]} {[%emt
00:15:41]} Bxg4 {[%clk 00:24:55]} {[%emt 00:00:20]} 35. a3 {[%clk 00:22:48]}
{[%emt 00:00:10]} bxa3 {[%clk 00:22:33]} {[%emt 00:02:52]} 36. bxa3 {[%clk
00:23:10]} {[%emt 00:00:09]} Kd7 {[%clk 00:17:51]} {[%emt 00:05:10]} 37. Ke3
{[%clk 00:20:14]} {[%emt 00:03:27]} Kc7 {[%clk 00:16:22]} {[%emt 00:01:59]} 38.
Ba8 {[%clk 00:20:09]} {[%emt 00:00:35]} Bc8 {[%clk 00:13:24]} {[%emt 00:03:27]}
39. Bd5 {[%clk 00:20:11]} {[%emt 00:00:28]} Be6 {[%clk 00:13:32]} {[%emt
00:00:22]} 40. Ba8 {[%clk 00:20:16]} {[%emt 00:00:26]} Bb3 {[%clk 00:09:49]}
{[%emt 00:04:12]} 41. Kf3 {[%clk 00:18:39]} {[%emt 00:02:07]} Bd1+ {[%clk
00:07:50]} {[%emt 00:02:29]} 42. Kg3 {[%clk 00:18:48]} {[%emt 00:00:21]} Ba4
{[%clk 00:27:49]} {[%emt 00:10:31]} 43. Bd5 {[%clk 00:48:23]} {[%emt 00:00:56]}
Bc6 {[%clk 00:26:57]} {[%emt 00:01:22]} 44. Bxf7 {[%clk 00:48:27]} {[%emt
00:00:26]} Bxe4 {[%clk 00:27:22]} {[%emt 00:00:05]} 45. Be8 {[%clk 00:46:27]}
{[%emt 00:02:29]} Bc6 {[%clk 00:25:46]} {[%emt 00:02:07]} 46. Bg6 {[%clk
00:46:07]} {[%emt 00:00:50]} Kd7 {[%clk 00:20:33]} {[%emt 00:05:42]} 47. Kg4
{[%clk 00:34:51]} {[%emt 00:11:47]} e4 {[%clk 00:19:24]} {[%emt 00:01:38]} 48.
Kxg5 {[%clk 00:34:47]} {[%emt 00:00:34]} e3 {[%clk 00:19:36]} {[%emt 00:00:19]}
49. Bd3 {[%clk 00:34:55]} {[%emt 00:00:22]} Bf3 {[%clk 00:20:00]} {[%emt
00:00:06]} 50. Kf4 {[%clk 00:35:20]} {[%emt 00:00:05]} e2 {[%clk 00:20:22]}
{[%emt 00:00:07]} 51. Bxe2 {[%clk 00:35:45]} {[%emt 00:00:05]} Bxe2 {[%clk
00:20:48]} {[%emt 00:00:04]} 52. Ke3 {[%clk 00:36:11]} {[%emt 00:00:05]} Bb5
{[%clk 00:20:42]} {[%emt 00:00:36]} 53. c6+ {[%clk 00:36:14]} {[%emt 00:00:27]}
Kxc6 {[%clk 00:20:55]} {[%emt 00:00:17]} 54. Kd4 {[%clk 00:36:38]} {[%emt
00:00:06]} Ba4 {[%clk 00:21:01]} {[%emt 00:00:24]} 55. Kc3 {[%clk 00:35:54]}
{[%emt 00:01:13]} Kc5 {[%clk 00:21:25]} {[%emt 00:00:06]} 56. Kb2 {[%clk
00:36:20]} {[%emt 00:00:05]} Kc4 {[%clk 00:21:40]} {[%emt 00:00:14]} 57. Ka1
{[%clk 00:36:13]} {[%emt 00:00:37]} Kc3 {[%clk 00:21:43]} {[%emt 00:00:28]} 58.
Ka2 {[%clk 00:36:19]} {[%emt 00:00:25]} Kc2 {[%clk 00:22:03]} {[%emt 00:00:10]}
59. Ka1 {[%clk 00:36:45]} {[%emt 00:00:04]} Kc1 {[%clk 00:20:30]} {[%emt
00:02:02]} 60. Ka2 {[%clk 00:37:09]} {[%emt 00:00:06]} Bd1 {[%clk 00:20:31]}
{[%emt 00:00:28]} 61. a4 {[%clk 00:37:30]} {[%emt 00:00:10]} Kc2 {[%clk
00:20:09]} {[%emt 00:00:52]} 62. Ka1 {[%clk 00:37:54]} {[%emt 00:00:06]} Bh5
{[%clk 00:19:52]} {[%emt 00:00:46]} 63. Ka2 {[%clk 00:38:19]} {[%emt 00:00:06]}
Be8 {[%clk 00:20:15]} {[%emt 00:00:06]} 64. Ka1 {[%clk 00:38:45]} {[%emt
00:00:05]} Bf7 {[%clk 00:20:27]} {[%emt 00:00:16]} 1/2-1/2

[Event "Junior-SM 2025"]
[Site "Uppsala, Sweden"]
[Date "2025.06.30"]
[Round "3.3"]
[White "Religa, Marek"]
[Black "Ral Lustig, Melvin"]
[Result "1/2-1/2"]
[TimeControl "90 min for 40 move + 30 min with an increment of 30 sec starting move 1"]
[BlackTitle "CM"]
[WhiteFideId "1750208"]
[BlackFideId "1764195"]
[WhiteElo "2228"]
[BlackElo "2233"]

1. e4 {[%clk 01:30:49]} {[%emt 00:00:10]} e5 {[%clk 01:30:46]} {[%emt
00:00:15]} 2. Nf3 {[%clk 01:31:09]} {[%emt 00:00:10]} Nc6 {[%clk 01:31:10]}
{[%emt 00:00:06]} 3. Nc3 {[%clk 01:31:32]} {[%emt 00:00:07]} Nf6 {[%clk
01:31:34]} {[%emt 00:00:05]} 4. g3 {[%clk 01:31:38]} {[%emt 00:00:24]} Bb4
{[%clk 01:30:55]} {[%emt 00:01:08]} 5. Bg2 {[%clk 01:31:27]} {[%emt 00:00:41]}
d6 {[%clk 01:28:28]} {[%emt 00:02:57]} 6. O-O {[%clk 01:28:35]} {[%emt
00:03:22]} Bxc3 {[%clk 01:25:57]} {[%emt 00:03:03]} 7. bxc3 {[%clk 01:27:26]}
{[%emt 00:01:39]} Nxe4 {[%clk 01:25:01]} {[%emt 00:01:26]} 8. Nxe5 {[%clk
01:23:07]} {[%emt 00:04:48]} Nxe5 {[%clk 01:23:12]} {[%emt 00:02:18]} 9. Bxe4
{[%clk 01:23:26]} {[%emt 00:00:12]} O-O {[%clk 01:17:57]} {[%emt 00:05:45]} 10.
d4 {[%clk 01:23:09]} {[%emt 00:00:47]} Nd7 {[%clk 01:17:53]} {[%emt 00:00:34]}
11. Rb1 {[%clk 01:14:07]} {[%emt 00:09:32]} Nb6 {[%clk 01:01:32]} {[%emt
00:16:52]} 12. c4 {[%clk 01:07:43]} {[%emt 00:06:54]} c6 {[%clk 00:55:23]}
{[%emt 00:06:36]} 13. Qd3 {[%clk 01:01:39]} {[%emt 00:06:34]} h6 {[%clk
00:54:51]} {[%emt 00:01:02]} 14. c5 {[%clk 00:40:51]} {[%emt 00:21:20]} dxc5
{[%clk 00:54:43]} {[%emt 00:00:37]} 15. dxc5 {[%clk 00:41:17]} {[%emt
00:00:05]} Qxd3 {[%clk 00:53:14]} {[%emt 00:01:58]} 16. Bxd3 {[%clk 00:40:35]}
{[%emt 00:01:12]} Nd7 {[%clk 00:46:45]} {[%emt 00:06:59]} 17. Be3 {[%clk
00:41:00]} {[%emt 00:00:05]} Ne5 {[%clk 00:46:02]} {[%emt 00:01:12]} 18. Be2
{[%clk 00:40:32]} {[%emt 00:00:58]} Re8 {[%clk 00:40:12]} {[%emt 00:06:20]} 19.
Bd4 {[%clk 00:38:14]} {[%emt 00:02:49]} Re7 {[%clk 00:36:54]} {[%emt 00:03:48]}
20. f4 {[%clk 00:30:38]} {[%emt 00:08:06]} Bg4 {[%clk 00:33:57]} {[%emt
00:03:27]} 21. Bxg4 {[%clk 00:24:19]} {[%emt 00:06:49]} Nxg4 {[%clk 00:34:04]}
{[%emt 00:00:23]} 22. Rb3 {[%clk 00:23:18]} {[%emt 00:01:31]} Rd8 {[%clk
00:32:58]} {[%emt 00:01:36]} 23. Rd3 {[%clk 00:23:29]} {[%emt 00:00:20]} Red7
{[%clk 00:19:22]} {[%emt 00:14:05]} 24. Rfd1 {[%clk 00:21:59]} {[%emt
00:02:00]} h5 {[%clk 00:19:09]} {[%emt 00:00:42]} 25. h3 {[%clk 00:21:10]}
{[%emt 00:01:19]} Nh6 {[%clk 00:19:05]} {[%emt 00:00:35]} 26. Bf2 {[%clk
00:20:55]} {[%emt 00:00:45]} Rxd3 {[%clk 00:19:06]} {[%emt 00:00:28]} 27. cxd3
{[%clk 00:21:03]} {[%emt 00:00:22]} Nf5 {[%clk 00:18:03]} {[%emt 00:01:33]} 28.
Kg2 {[%clk 00:20:31]} {[%emt 00:01:02]} Ne7 {[%clk 00:16:21]} {[%emt 00:02:12]}
29. Rb1 {[%clk 00:20:10]} {[%emt 00:00:52]} Rd7 {[%clk 00:16:44]} {[%emt
00:00:07]} 30. Rb3 {[%clk 00:20:16]} {[%emt 00:00:22]} Nd5 {[%clk 00:16:45]}
{[%emt 00:00:30]} 31. Kf3 {[%clk 00:20:32]} {[%emt 00:00:14]} f5 {[%clk
00:14:51]} {[%emt 00:02:24]} 1/2-1/2

[Event "Junior-SM 2025"]
[Site "Uppsala, Sweden"]
[Date "2025.06.30"]
[Round "3.4"]
[White "Seo, Jung Hyun"]
[Black "Karlsson, Stefan"]
[Result "1/2-1/2"]
[TimeControl "90 min for 40 move + 30 min with an increment of 30 sec starting move 1"]
[WhiteFideId "1735667"]
[BlackFideId "1771183"]
[WhiteElo "2153"]
[BlackElo "2126"]

1. e4 {[%clk 01:30:57]} {[%emt 00:00:02]} c5 {[%clk 01:30:49]} {[%emt
00:00:12]} 2. Nf3 {[%clk 01:31:24]} {[%emt 00:00:03]} d6 {[%clk 01:31:14]}
{[%emt 00:00:05]} 3. d4 {[%clk 01:31:44]} {[%emt 00:00:10]} cxd4 {[%clk
01:31:40]} {[%emt 00:00:05]} 4. Nxd4 {[%clk 01:32:10]} {[%emt 00:00:03]} Nf6
{[%clk 01:32:04]} {[%emt 00:00:05]} 5. Nc3 {[%clk 01:32:34]} {[%emt 00:00:07]}
Nc6 {[%clk 01:32:22]} {[%emt 00:00:13]} 6. f3 {[%clk 01:32:59]} {[%emt
00:00:04]} e5 {[%clk 01:32:28]} {[%emt 00:00:24]} 7. Nb3 {[%clk 01:33:24]}
{[%emt 00:00:04]} Be6 {[%clk 01:32:28]} {[%emt 00:00:30]} 8. Nd5 {[%clk
01:30:59]} {[%emt 00:02:56]} Be7 {[%clk 01:32:52]} {[%emt 00:00:06]} 9. Be3
{[%clk 01:31:21]} {[%emt 00:00:07]} O-O {[%clk 01:33:18]} {[%emt 00:00:05]} 10.
Qd2 {[%clk 01:31:43]} {[%emt 00:00:08]} a5 {[%clk 01:33:31]} {[%emt 00:00:17]}
11. c4 {[%clk 01:19:50]} {[%emt 00:12:23]} a4 {[%clk 01:32:45]} {[%emt
00:01:16]} 12. Nc1 {[%clk 01:17:10]} {[%emt 00:03:10]} b5 {[%clk 01:31:53]}
{[%emt 00:01:22]} 13. cxb5 {[%clk 00:58:52]} {[%emt 00:18:48]} Bxd5 {[%clk
01:26:04]} {[%emt 00:06:18]} 14. exd5 {[%clk 00:59:08]} {[%emt 00:00:15]} Nd4
{[%clk 01:25:55]} {[%emt 00:00:38]} 15. Bxd4 {[%clk 00:51:10]} {[%emt
00:08:29]} exd4 {[%clk 01:26:17]} {[%emt 00:00:09]} 16. Bc4 {[%clk 00:49:15]}
{[%emt 00:02:24]} Qc8 {[%clk 01:20:26]} {[%emt 00:06:20]} 17. b3 {[%clk
00:47:00]} {[%emt 00:02:45]} axb3 {[%clk 01:01:01]} {[%emt 00:19:55]} 18. Bxb3
{[%clk 00:47:19]} {[%emt 00:00:11]} Bd8 {[%clk 01:01:02]} {[%emt 00:00:28]} 19.
O-O {[%clk 00:46:26]} {[%emt 00:01:24]} Ba5 {[%clk 00:57:23]} {[%emt 00:04:09]}
20. Qd3 {[%clk 00:44:05]} {[%emt 00:02:50]} Re8 {[%clk 00:56:07]} {[%emt
00:01:46]} 21. Rb1 {[%clk 00:37:10]} {[%emt 00:07:26]} Qb7 {[%clk 00:48:39]}
{[%emt 00:07:58]} 22. Kh1 {[%clk 00:29:30]} {[%emt 00:08:10]} Rac8 {[%clk
00:27:11]} {[%emt 00:21:57]} 23. Qxd4 {[%clk 00:23:36]} {[%emt 00:06:25]} Qxb5
{[%clk 00:27:03]} {[%emt 00:00:38]} 24. Qd3 {[%clk 00:23:08]} {[%emt 00:00:57]}
Qc5 {[%clk 00:24:56]} {[%emt 00:02:38]} 25. Ne2 {[%clk 00:20:30]} {[%emt
00:03:07]} Re3 {[%clk 00:24:57]} {[%emt 00:00:29]} 26. Qd1 {[%clk 00:20:53]}
{[%emt 00:00:08]} Rce8 {[%clk 00:24:08]} {[%emt 00:01:18]} 27. Ng3 {[%clk
00:21:11]} {[%emt 00:00:13]} Re1 {[%clk 00:20:27]} {[%emt 00:04:11]} 28. Qd3
{[%clk 00:20:45]} {[%emt 00:00:56]} h5 {[%clk 00:17:10]} {[%emt 00:03:46]} 29.
Rbxe1 {[%clk 00:18:58]} {[%emt 00:02:17]} Rxe1 {[%clk 00:16:05]} {[%emt
00:01:36]} 30. Rxe1 {[%clk 00:18:08]} {[%emt 00:01:20]} Bxe1 {[%clk 00:16:29]}
{[%emt 00:00:06]} 31. Ne4 {[%clk 00:15:33]} {[%emt 00:03:05]} 1/2-1/2